[Event "Titled Tuesday Blitz August 16 Early 2022"]
[White "Sourath Biswas"]
[Black "Leve, Nitai"]
[WhiteFideId "35091484"]
[BlackFideId "2006898"]
[WhiteElo "1777"]
[BlackElo "2144"]
[Result "1-0"]
[Round "08"]
[TimeControl "180+2"]
[Date "2022.08.18"]
[WhiteClock "0:00:00"]
[BlackClock "0:00:00"]

1. d4 {[%clk 0:00:00]}  d5 {[%clk 0:00:00]} 2. Bf4 {[%clk 0:00:00]}  Nf6 {[%clk 0:00:00]} 3. e3 {[%clk 0:00:00]}  Bf5 {[%clk 0:00:00]} 4. c4 {[%clk 0:00:00]}  e6 {[%clk 0:00:00]} 5. Nf3 {[%clk 0:00:00]}  Nbd7 {[%clk 0:00:00]} 6. Qb3 {[%clk 0:00:00]}  Bd6 {[%clk 0:00:00]} 7. Bxd6 {[%clk 0:00:00]}  cxd6 {[%clk 0:00:00]} 8. cxd5 {[%clk 0:00:00]}  O-O {[%clk 0:00:00]} 9. Nc3 {[%clk 0:00:00]}  Rc8 {[%clk 0:00:00]} 10. dxe6 {[%clk 0:00:00]}  fxe6 {[%clk 0:00:00]} 11. Nh4 {[%clk 0:00:00]}  Bg4 {[%clk 0:00:00]} 12. h3 {[%clk 0:00:00]}  Bh5 {[%clk 0:00:00]} 13. Qxe6+ {[%clk 0:00:00]}  Kh8 {[%clk 0:00:00]} 14. Bd3 {[%clk 0:00:00]}  Nd5 {[%clk 0:00:00]} 15. Nxd5 {[%clk 0:00:00]}  Qxh4 {[%clk 0:00:00]} 16. g3 {[%clk 0:00:00]}  Qd8 {[%clk 0:00:00]} 17. Nf4 {[%clk 0:00:00]}  Qa5+ {[%clk 0:00:00]} 18. Kf1 {[%clk 0:00:00]}  Bf3 {[%clk 0:00:00]} 19. Qxd7 {[%clk 0:00:00]}  Bxh1 {[%clk 0:00:00]} 20. Ne6 {[%clk 0:00:00]}  Rg8 {[%clk 0:00:00]} 21. h4 {[%clk 0:00:00]}  Bc6 {[%clk 0:00:00]} 22. Ng5 {[%clk 0:00:00]}  Rgf8 {[%clk 0:00:00]} 23. Qe6 {[%clk 0:00:00]}  Qd5 {[%clk 0:00:00]} 24. Nf7+ {[%clk 0:00:00]}  Rxf7 {[%clk 0:00:00]} 25. Qxc8+ {[%clk 0:00:00]} 1-0


[Site "https://www.chess.com"]

[Event "Titled Tuesday Blitz August 16 Early 2022"]
[White "Suder, Jakub"]
[Black "Acosta Cruz, Oscar Yosimar"]
[WhiteFideId "1195310"]
[BlackFideId "5111269"]
[WhiteElo "2095"]
[BlackElo "2147"]
[Result "1-0"]
[Round "08"]
[TimeControl "180+2"]
[Date "2022.08.18"]
[WhiteClock "0:00:00"]
[BlackClock "0:00:00"]

1. d4 {[%clk 0:00:00]}  Nf6 {[%clk 0:00:00]} 2. c4 {[%clk 0:00:00]}  c6 {[%clk 0:00:00]} 3. Nc3 {[%clk 0:00:00]}  d5 {[%clk 0:00:00]} 4. Nf3 {[%clk 0:00:00]}  a6 {[%clk 0:00:00]} 5. Qc2 {[%clk 0:00:00]}  b5 {[%clk 0:00:00]} 6. e4 {[%clk 0:00:00]}  dxc4 {[%clk 0:00:00]} 7. e5 {[%clk 0:00:00]}  Nd5 {[%clk 0:00:00]} 8. Be2 {[%clk 0:00:00]}  e6 {[%clk 0:00:00]} 9. O-O {[%clk 0:00:00]}  Bb7 {[%clk 0:00:00]} 10. Ne4 {[%clk 0:00:00]}  Nd7 {[%clk 0:00:00]} 11. Nfg5 {[%clk 0:00:00]}  Be7 {[%clk 0:00:00]} 12. f4 {[%clk 0:00:00]}  h6 {[%clk 0:00:00]} 13. Nxe6 {[%clk 0:00:00]}  fxe6 {[%clk 0:00:00]} 14. Bh5+ {[%clk 0:00:00]}  Kf8 {[%clk 0:00:00]} 15. f5 {[%clk 0:00:00]}  N7f6 {[%clk 0:00:00]} 16. fxe6 {[%clk 0:00:00]}  Bc8 {[%clk 0:00:00]} 17. exf6 {[%clk 0:00:00]}  Nxf6 {[%clk 0:00:00]} 18. Be3 {[%clk 0:00:00]}  Bxe6 {[%clk 0:00:00]} 19. Nc5 {[%clk 0:00:00]}  Bd5 {[%clk 0:00:00]} 20. Rae1 {[%clk 0:00:00]}  Kg8 {[%clk 0:00:00]} 21. Bg6 {[%clk 0:00:00]}  Bd6 {[%clk 0:00:00]} 22. Bf4 {[%clk 0:00:00]}  Bxf4 {[%clk 0:00:00]} 23. Rxf4 {[%clk 0:00:00]}  Qd6 {[%clk 0:00:00]} 24. Qf5 {[%clk 0:00:00]}  Rf8 {[%clk 0:00:00]} 25. g3 {[%clk 0:00:00]}  h5 {[%clk 0:00:00]} 26. Ne6 {[%clk 0:00:00]}  h4 {[%clk 0:00:00]} 27. Nxf8 {[%clk 0:00:00]}  hxg3 {[%clk 0:00:00]} 28. h4 {[%clk 0:00:00]}  Qxf8 {[%clk 0:00:00]} 29. Re8 {[%clk 0:00:00]}  Nxe8 {[%clk 0:00:00]} 30. Qxf8# {[%clk 0:00:00]} 1-0


[Site "https://www.chess.com"]

[Event "Titled Tuesday Blitz August 16 Early 2022"]
[White "Sultana, Sharmin Shirin"]
[Black "Matveeva, Olga"]
[WhiteFideId "10204482"]
[BlackFideId "24107018"]
[WhiteElo "1987"]
[BlackElo "2052"]
[Result "0-1"]
[Round "08"]
[TimeControl "180+2"]
[Date "2022.08.18"]
[WhiteClock "0:00:00"]
[BlackClock "0:00:00"]

1. d4 {[%clk 0:00:00]}  Nf6 {[%clk 0:00:00]} 2. c4 {[%clk 0:00:00]}  e6 {[%clk 0:00:00]} 3. Nc3 {[%clk 0:00:00]}  Bb4 {[%clk 0:00:00]} 4. e3 {[%clk 0:00:00]}  O-O {[%clk 0:00:00]} 5. Bd3 {[%clk 0:00:00]}  c5 {[%clk 0:00:00]} 6. Ne2 {[%clk 0:00:00]}  cxd4 {[%clk 0:00:00]} 7. exd4 {[%clk 0:00:00]}  d5 {[%clk 0:00:00]} 8. cxd5 {[%clk 0:00:00]}  Nxd5 {[%clk 0:00:00]} 9. Qc2 {[%clk 0:00:00]}  h6 {[%clk 0:00:00]} 10. O-O {[%clk 0:00:00]}  Nc6 {[%clk 0:00:00]} 11. Ne4 {[%clk 0:00:00]}  Bd7 {[%clk 0:00:00]} 12. a3 {[%clk 0:00:00]}  Be7 {[%clk 0:00:00]} 13. Be3 {[%clk 0:00:00]}  Rc8 {[%clk 0:00:00]} 14. Qd2 {[%clk 0:00:00]}  Nxe3 {[%clk 0:00:00]} 15. fxe3 {[%clk 0:00:00]}  e5 {[%clk 0:00:00]} 16. d5 {[%clk 0:00:00]}  Na5 {[%clk 0:00:00]} 17. d6 {[%clk 0:00:00]}  Bg5 {[%clk 0:00:00]} 18. Nxg5 {[%clk 0:00:00]}  Qxg5 {[%clk 0:00:00]} 19. Rad1 {[%clk 0:00:00]}  Nc4 {[%clk 0:00:00]} 20. Bxc4 {[%clk 0:00:00]}  Rxc4 {[%clk 0:00:00]} 21. Ng3 {[%clk 0:00:00]}  Rfc8 {[%clk 0:00:00]} 22. Rc1 {[%clk 0:00:00]}  h5 {[%clk 0:00:00]} 23. Rxc4 {[%clk 0:00:00]}  Rxc4 {[%clk 0:00:00]} 24. Qd5 {[%clk 0:00:00]}  Be6 {[%clk 0:00:00]} 25. Qxb7 {[%clk 0:00:00]}  h4 {[%clk 0:00:00]} 26. Qb8+ {[%clk 0:00:00]}  Kh7 {[%clk 0:00:00]} 27. d7 {[%clk 0:00:00]}  Bxd7 {[%clk 0:00:00]} 28. Qb3 {[%clk 0:00:00]}  Be6 {[%clk 0:00:00]} 29. Qd3+ {[%clk 0:00:00]}  g6 {[%clk 0:00:00]} 30. Ne4 {[%clk 0:00:00]}  Qe7 {[%clk 0:00:00]} 31. Nf6+ {[%clk 0:00:00]}  Kg7 {[%clk 0:00:00]} 32. Qe2 {[%clk 0:00:00]}  Rc6 {[%clk 0:00:00]} 33. Qb5 {[%clk 0:00:00]}  Rc5 {[%clk 0:00:00]} 34. Qb8 {[%clk 0:00:00]}  Bf5 {[%clk 0:00:00]} 0-1


[Site "https://www.chess.com"]

[Event "Titled Tuesday Blitz August 16 Early 2022"]
[White "Taspinar, Yanki"]
[Black "Demin, Vladimir"]
[WhiteFideId "34561188"]
[BlackFideId "4167457"]
[WhiteElo "1549"]
[BlackElo "2430"]
[Result "1/2-1/2"]
[Round "08"]
[TimeControl "180+2"]
[Date "2022.08.18"]
[WhiteClock "0:00:00"]
[BlackClock "0:00:00"]

1. Nf3 {[%clk 0:00:00]}  d5 {[%clk 0:00:00]} 2. d4 {[%clk 0:00:00]}  Nf6 {[%clk 0:00:00]} 3. g3 {[%clk 0:00:00]}  e6 {[%clk 0:00:00]} 4. Bg2 {[%clk 0:00:00]}  b5 {[%clk 0:00:00]} 5. O-O {[%clk 0:00:00]}  Be7 {[%clk 0:00:00]} 6. a4 {[%clk 0:00:00]}  b4 {[%clk 0:00:00]} 7. c4 {[%clk 0:00:00]}  bxc3 {[%clk 0:00:00]} 8. bxc3 {[%clk 0:00:00]}  Ba6 {[%clk 0:00:00]} 9. Na3 {[%clk 0:00:00]}  O-O {[%clk 0:00:00]} 10. Ne5 {[%clk 0:00:00]}  c5 {[%clk 0:00:00]} 11. Nb5 {[%clk 0:00:00]}  cxd4 {[%clk 0:00:00]} 12. cxd4 {[%clk 0:00:00]}  Nfd7 {[%clk 0:00:00]} 13. e4 {[%clk 0:00:00]}  Nxe5 {[%clk 0:00:00]} 14. dxe5 {[%clk 0:00:00]}  d4 {[%clk 0:00:00]} 15. f4 {[%clk 0:00:00]}  Nc6 {[%clk 0:00:00]} 16. Rf2 {[%clk 0:00:00]}  Bc5 {[%clk 0:00:00]} 17. Rd2 {[%clk 0:00:00]}  Qe7 {[%clk 0:00:00]} 18. Bb2 {[%clk 0:00:00]}  Rfd8 {[%clk 0:00:00]} 19. Kh1 {[%clk 0:00:00]}  Bb4 {[%clk 0:00:00]} 20. Nxd4 {[%clk 0:00:00]}  Qb7 {[%clk 0:00:00]} 21. Rc2 {[%clk 0:00:00]}  Rxd4 {[%clk 0:00:00]} 22. Bxd4 {[%clk 0:00:00]}  Rd8 {[%clk 0:00:00]} 23. Rxc6 {[%clk 0:00:00]}  Qxc6 {[%clk 0:00:00]} 24. Qg1 {[%clk 0:00:00]}  Qc2 {[%clk 0:00:00]} 25. Rc1 {[%clk 0:00:00]}  Qxa4 {[%clk 0:00:00]} 26. Bxa7 {[%clk 0:00:00]}  h6 {[%clk 0:00:00]} 27. Bc5 {[%clk 0:00:00]}  Bd2 {[%clk 0:00:00]} 28. Rd1 {[%clk 0:00:00]}  Be2 {[%clk 0:00:00]} 29. Rb1 {[%clk 0:00:00]}  Bd3 {[%clk 0:00:00]} 30. Rd1 {[%clk 0:00:00]}  Bxe4 {[%clk 0:00:00]} 31. Bxe4 {[%clk 0:00:00]}  Qxe4+ {[%clk 0:00:00]} 32. Qg2 {[%clk 0:00:00]}  Qc2 {[%clk 0:00:00]} 33. Qe2 {[%clk 0:00:00]}  Qxc5 {[%clk 0:00:00]} 34. Kg2 {[%clk 0:00:00]}  Qd5+ {[%clk 0:00:00]} 35. Qf3 {[%clk 0:00:00]}  Qxf3+ {[%clk 0:00:00]} 36. Kxf3 {[%clk 0:00:00]}  Ba5 {[%clk 0:00:00]} 37. Ra1 {[%clk 0:00:00]}  Bb4 {[%clk 0:00:00]} 38. Ra4 {[%clk 0:00:00]}  Bf8 {[%clk 0:00:00]} 39. Ra7 {[%clk 0:00:00]}  g6 {[%clk 0:00:00]} 40. h3 {[%clk 0:00:00]}  h5 {[%clk 0:00:00]} 41. Ke4 {[%clk 0:00:00]}  Rd1 {[%clk 0:00:00]} 42. g4 {[%clk 0:00:00]}  h4 {[%clk 0:00:00]} 43. f5 {[%clk 0:00:00]}  Rh1 {[%clk 0:00:00]} 44. fxe6 {[%clk 0:00:00]}  fxe6 {[%clk 0:00:00]} 45. Kf4 {[%clk 0:00:00]}  Bh6+ {[%clk 0:00:00]} 46. g5 {[%clk 0:00:00]}  Bg7 {[%clk 0:00:00]} 47. Kg4 {[%clk 0:00:00]}  Re1 {[%clk 0:00:00]} 48. Kxh4 {[%clk 0:00:00]}  Rxe5 {[%clk 0:00:00]} 49. Kg4 {[%clk 0:00:00]}  Re4+ {[%clk 0:00:00]} 50. Kg3 {[%clk 0:00:00]}  Rb4 {[%clk 0:00:00]} 51. h4 {[%clk 0:00:00]}  Kh7 {[%clk 0:00:00]} 52. Re7 {[%clk 0:00:00]}  e5 {[%clk 0:00:00]} 53. Kh3 {[%clk 0:00:00]}  Kg8 {[%clk 0:00:00]} 54. Kg3 {[%clk 0:00:00]}  Ra4 {[%clk 0:00:00]} 55. Rb7 {[%clk 0:00:00]}  e4 {[%clk 0:00:00]} 56. Kf4 {[%clk 0:00:00]}  e3+ {[%clk 0:00:00]} 57. Kxe3 {[%clk 0:00:00]}  Rxh4 {[%clk 0:00:00]} 58. Kf3 {[%clk 0:00:00]}  Ra4 {[%clk 0:00:00]} 59. Rb8+ {[%clk 0:00:00]}  Kh7 {[%clk 0:00:00]} 60. Rb7 {[%clk 0:00:00]}  Rc4 {[%clk 0:00:00]} 61. Kg3 {[%clk 0:00:00]}  Rc8 {[%clk 0:00:00]} 62. Kg4 {[%clk 0:00:00]}  Kg8 {[%clk 0:00:00]} 63. Rb6 {[%clk 0:00:00]}  Kh7 {[%clk 0:00:00]} 64. Rb7 {[%clk 0:00:00]}  Rf8 {[%clk 0:00:00]} 65. Kg3 {[%clk 0:00:00]}  Kg8 {[%clk 0:00:00]} 66. Rb6 {[%clk 0:00:00]}  Kh7 {[%clk 0:00:00]} 67. Kg4 {[%clk 0:00:00]}  Re8 {[%clk 0:00:00]} 68. Rb7 {[%clk 0:00:00]}  Kg8 {[%clk 0:00:00]} 69. Rb6 {[%clk 0:00:00]}  Kf7 {[%clk 0:00:00]} 70. Rb7+ {[%clk 0:00:00]}  Re7 {[%clk 0:00:00]} 71. Rb6 {[%clk 0:00:00]}  Be5 {[%clk 0:00:00]} 72. Rc6 {[%clk 0:00:00]}  Bg7 {[%clk 0:00:00]} 73. Rb6 {[%clk 0:00:00]}  Re4+ {[%clk 0:00:00]} 74. Kf3 {[%clk 0:00:00]}  Re7 {[%clk 0:00:00]} 75. Kg4 {[%clk 0:00:00]} 1/2-1/2


[Site "https://www.chess.com"]

[Event "Titled Tuesday Blitz August 16 Early 2022"]
[White "Timofeev, Artyom"]
[Black "Nakamura, Hikaru"]
[WhiteFideId "4140419"]
[BlackFideId "2016192"]
[WhiteElo "2578"]
[BlackElo "2850"]
[Result "1/2-1/2"]
[Round "08"]
[TimeControl "180+1"]
[Date "2022.08.16"]
[WhiteClock "0:00:55"]
[BlackClock "0:00:02"]

1. e4 {[%clk 0:03:00]}  c6 {[%clk 0:02:55]} 2. Nf3 {[%clk 0:03:00]}  d5 {[%clk 0:02:54]} 3. d3 {[%clk 0:03:00]}  Bg4 {[%clk 0:02:54]} 4. h3 {[%clk 0:02:59]}  Bxf3 {[%clk 0:02:54]} 5. Qxf3 {[%clk 0:02:59]}  e6 {[%clk 0:02:54]} 6. Nd2 {[%clk 0:02:58]}  g6 {[%clk 0:02:54]} 7. c3 {[%clk 0:02:58]}  Bg7 {[%clk 0:02:53]} 8. d4 {[%clk 0:02:58]}  Nf6 {[%clk 0:02:51]} 9. Be2 {[%clk 0:02:57]}  dxe4 {[%clk 0:02:47]} 10. Nxe4 {[%clk 0:02:56]}  Nxe4 {[%clk 0:02:48]} 11. Qxe4 {[%clk 0:02:57]}  Nd7 {[%clk 0:02:49]} 12. O-O {[%clk 0:02:55]}  O-O {[%clk 0:02:48]} 13. Bf4 {[%clk 0:02:53]}  a5 {[%clk 0:02:44]} 14. Rad1 {[%clk 0:02:50]}  Re8 {[%clk 0:02:37]} 15. Qf3 {[%clk 0:02:39]}  Qb6 {[%clk 0:02:34]} 16. Rd2 {[%clk 0:02:38]}  a4 {[%clk 0:02:33]} 17. a3 {[%clk 0:02:38]}  Qa5 {[%clk 0:02:19]} 18. Rfd1 {[%clk 0:02:34]}  Rac8 {[%clk 0:02:18]} 19. Bd6 {[%clk 0:02:30]}  Qd5 {[%clk 0:02:11]} 20. Bb4 {[%clk 0:02:29]}  Nb6 {[%clk 0:02:08]} 21. Bc5 {[%clk 0:02:25]}  Qxf3 {[%clk 0:02:05]} 22. Bxf3 {[%clk 0:02:15]}  Nc4 {[%clk 0:02:05]} 23. Rc2 {[%clk 0:02:14]}  Bf8 {[%clk 0:02:04]} 24. Be2 {[%clk 0:02:11]}  Na5 {[%clk 0:02:05]} 25. Bb4 {[%clk 0:02:08]}  Ra8 {[%clk 0:02:05]} 26. Bxa5 {[%clk 0:02:07]}  Rxa5 {[%clk 0:02:05]} 27. g3 {[%clk 0:02:06]}  Rd8 {[%clk 0:02:05]} 28. Kg2 {[%clk 0:02:05]}  Bg7 {[%clk 0:02:04]} 29. h4 {[%clk 0:02:04]}  Kf8 {[%clk 0:02:04]} 30. Bf3 {[%clk 0:02:04]}  Ke7 {[%clk 0:02:05]} 31. Re2 {[%clk 0:02:03]}  Rb5 {[%clk 0:02:03]} 32. Red2 {[%clk 0:01:58]}  Kf8 {[%clk 0:02:00]} 33. Be2 {[%clk 0:01:57]}  Rbd5 {[%clk 0:02:00]} 34. Rd3 {[%clk 0:01:53]}  Ke7 {[%clk 0:01:56]} 35. Kf1 {[%clk 0:01:53]}  Kd6 {[%clk 0:01:55]} 36. Rf3 {[%clk 0:01:48]}  Ke7 {[%clk 0:01:53]} 37. Rfd3 {[%clk 0:01:48]}  Kd6 {[%clk 0:01:52]} 38. Rf3 {[%clk 0:01:48]}  Rd7 {[%clk 0:01:53]} 39. Bd3 {[%clk 0:01:46]}  Kc7 {[%clk 0:01:53]} 40. Bc2 {[%clk 0:01:46]}  b5 {[%clk 0:01:51]} 41. Be4 {[%clk 0:01:44]}  R5d6 {[%clk 0:01:51]} 42. Re1 {[%clk 0:01:42]}  Kb6 {[%clk 0:01:50]} 43. Bc2 {[%clk 0:01:39]}  c5 {[%clk 0:01:47]} 44. dxc5+ {[%clk 0:01:38]}  Kxc5 {[%clk 0:01:48]} 45. Rfe3 {[%clk 0:01:37]}  e5 {[%clk 0:01:48]} 46. g4 {[%clk 0:01:35]}  Kb6 {[%clk 0:01:37]} 47. Re4 {[%clk 0:01:28]}  Ka5 {[%clk 0:01:33]} 48. R4e3 {[%clk 0:01:25]}  Bf6 {[%clk 0:01:23]} 49. g5 {[%clk 0:01:25]}  Bg7 {[%clk 0:01:24]} 50. Rf3 {[%clk 0:01:20]}  f5 {[%clk 0:01:18]} 51. gxf6 {[%clk 0:01:20]}  Bxf6 {[%clk 0:01:19]} 52. Re4 {[%clk 0:01:18]}  Rc6 {[%clk 0:01:15]} 53. Ke2 {[%clk 0:01:13]}  h5 {[%clk 0:01:12]} 54. Rd3 {[%clk 0:01:12]}  Rxd3 {[%clk 0:00:55]} 55. Bxd3 {[%clk 0:01:11]}  Rc5 {[%clk 0:00:56]} 56. Rb4 {[%clk 0:00:53]}  g5 {[%clk 0:00:55]} 57. hxg5 {[%clk 0:00:52]}  Bxg5 {[%clk 0:00:56]} 58. c4 {[%clk 0:00:45]}  bxc4 {[%clk 0:00:30]} 59. Rxc4 {[%clk 0:00:44]}  Rb5 {[%clk 0:00:29]} 60. Rc2 {[%clk 0:00:43]}  Rd5 {[%clk 0:00:29]} 61. Be4 {[%clk 0:00:42]}  Rd4 {[%clk 0:00:29]} 62. Rc5+ {[%clk 0:00:41]}  Kb6 {[%clk 0:00:30]} 63. Rxe5 {[%clk 0:00:41]}  Bf4 {[%clk 0:00:30]} 64. Re6+ {[%clk 0:00:41]}  Ka7 {[%clk 0:00:26]} 65. Bd3 {[%clk 0:00:40]}  Bc1 {[%clk 0:00:24]} 66. Re4 {[%clk 0:00:38]}  Rxe4+ {[%clk 0:00:22]} 67. Bxe4 {[%clk 0:00:38]}  Kb6 {[%clk 0:00:22]} 68. Bc2 {[%clk 0:00:36]}  Bxb2 {[%clk 0:00:22]} 69. Bxa4 {[%clk 0:00:36]}  Bxa3 {[%clk 0:00:22]} 70. Bd7 {[%clk 0:00:36]}  Be7 {[%clk 0:00:22]} 71. Be8 {[%clk 0:00:35]}  h4 {[%clk 0:00:23]} 72. Bd7 {[%clk 0:00:36]}  Kc5 {[%clk 0:00:24]} 73. Bh3 {[%clk 0:00:36]}  Kd6 {[%clk 0:00:25]} 74. Kf3 {[%clk 0:00:37]}  Ke5 {[%clk 0:00:26]} 75. Kg2 {[%clk 0:00:37]}  Kf4 {[%clk 0:00:26]} 76. Bc8 {[%clk 0:00:37]}  Bc5 {[%clk 0:00:27]} 77. Bh3 {[%clk 0:00:37]}  Bb6 {[%clk 0:00:27]} 78. Bc8 {[%clk 0:00:37]}  Bc5 {[%clk 0:00:27]} 79. Bh3 {[%clk 0:00:37]}  Bb6 {[%clk 0:00:28]} 80. Bc8 {[%clk 0:00:37]}  Ba5 {[%clk 0:00:28]} 81. Bh3 {[%clk 0:00:37]}  Bc7 {[%clk 0:00:29]} 82. Bc8 {[%clk 0:00:37]}  Bd8 {[%clk 0:00:29]} 83. Bh3 {[%clk 0:00:37]}  Bg5 {[%clk 0:00:30]} 84. Bc8 {[%clk 0:00:37]}  Bh6 {[%clk 0:00:31]} 85. Bh3 {[%clk 0:00:37]}  Kg5 {[%clk 0:00:32]} 86. Bc8 {[%clk 0:00:37]}  Bf8 {[%clk 0:00:33]} 87. Bh3 {[%clk 0:00:38]}  Bb4 {[%clk 0:00:33]} 88. Bc8 {[%clk 0:00:38]}  Ba5 {[%clk 0:00:32]} 89. Bh3 {[%clk 0:00:39]}  Bb6 {[%clk 0:00:32]} 90. Bc8 {[%clk 0:00:39]}  Ba7 {[%clk 0:00:33]} 91. Bh3 {[%clk 0:00:39]}  Bb8 {[%clk 0:00:34]} 92. Bc8 {[%clk 0:00:39]}  Bf4 {[%clk 0:00:32]} 93. Bh3 {[%clk 0:00:39]}  Bd2 {[%clk 0:00:32]} 94. Bc8 {[%clk 0:00:39]}  Ba5 {[%clk 0:00:26]} 95. Bh3 {[%clk 0:00:38]}  Kf4 {[%clk 0:00:22]} 96. Bc8 {[%clk 0:00:38]}  Bd2 {[%clk 0:00:21]} 97. Bh3 {[%clk 0:00:38]}  Bc1 {[%clk 0:00:11]} 98. Bc8 {[%clk 0:00:38]}  Bb2 {[%clk 0:00:07]} 99. Bh3 {[%clk 0:00:37]}  Bd4 {[%clk 0:00:06]} 100. Bc8 {[%clk 0:00:37]}  Bg7 {[%clk 0:00:07]} 101. Bh3 {[%clk 0:00:37]}  Bf8 {[%clk 0:00:07]} 102. Bc8 {[%clk 0:00:37]}  Be7 {[%clk 0:00:07]} 103. Bh3 {[%clk 0:00:37]}  Ba3 {[%clk 0:00:08]} 104. Bc8 {[%clk 0:00:37]}  Bb2 {[%clk 0:00:06]} 105. Bh3 {[%clk 0:00:37]}  Ba1 {[%clk 0:00:06]} 106. Bc8 {[%clk 0:00:37]}  Bd4 {[%clk 0:00:07]} 107. Bh3 {[%clk 0:00:36]}  Bc5 {[%clk 0:00:08]} 108. Bc8 {[%clk 0:00:36]}  Ke4 {[%clk 0:00:08]} 109. Bh3 {[%clk 0:00:36]}  Kd3 {[%clk 0:00:09]} 110. Bg4 {[%clk 0:00:34]}  Be7 {[%clk 0:00:09]} 111. f4 {[%clk 0:00:34]}  Ke4 {[%clk 0:00:09]} 112. f5 {[%clk 0:00:34]}  Kf4 {[%clk 0:00:09]} 113. Bh3 {[%clk 0:00:34]}  Bf6 {[%clk 0:00:09]} 114. Kh2 {[%clk 0:00:34]}  Kf3 {[%clk 0:00:09]} 115. Bg2+ {[%clk 0:00:34]}  Kg4 {[%clk 0:00:09]} 116. Bh3+ {[%clk 0:00:34]}  Kf4 {[%clk 0:00:10]} 117. Kg2 {[%clk 0:00:34]}  Ke3 {[%clk 0:00:10]} 118. Bg4 {[%clk 0:00:33]}  Ke4 {[%clk 0:00:09]} 119. Kh3 {[%clk 0:00:33]}  Kf4 {[%clk 0:00:09]} 120. Bh5 {[%clk 0:00:34]}  Kxf5 {[%clk 0:00:08]} 121. Bg4+ {[%clk 0:00:34]}  Ke5 {[%clk 0:00:09]} 122. Bh5 {[%clk 0:00:34]}  Kd6 {[%clk 0:00:10]} 123. Bg4 {[%clk 0:00:35]}  Bd8 {[%clk 0:00:11]} 124. Bh5 {[%clk 0:00:35]}  Kc7 {[%clk 0:00:12]} 125. Bg4 {[%clk 0:00:35]}  Kb8 {[%clk 0:00:13]} 126. Bh5 {[%clk 0:00:36]}  Ka7 {[%clk 0:00:14]} 127. Bg4 {[%clk 0:00:37]}  Kb6 {[%clk 0:00:14]} 128. Bh5 {[%clk 0:00:37]}  Ka5 {[%clk 0:00:15]} 129. Bg4 {[%clk 0:00:38]}  Kb4 {[%clk 0:00:16]} 130. Bh5 {[%clk 0:00:39]}  Ka3 {[%clk 0:00:17]} 131. Bg4 {[%clk 0:00:39]}  Kb2 {[%clk 0:00:18]} 132. Bh5 {[%clk 0:00:40]}  Ka1 {[%clk 0:00:19]} 133. Bg4 {[%clk 0:00:40]}  Kb1 {[%clk 0:00:20]} 134. Bh5 {[%clk 0:00:41]}  Kc1 {[%clk 0:00:21]} 135. Bg4 {[%clk 0:00:41]}  Kd2 {[%clk 0:00:22]} 136. Bh5 {[%clk 0:00:42]}  Ke1 {[%clk 0:00:23]} 137. Bg4 {[%clk 0:00:43]}  Kf2 {[%clk 0:00:23]} 138. Bh5 {[%clk 0:00:43]}  Ke3 {[%clk 0:00:24]} 139. Bg4 {[%clk 0:00:44]}  Kf4 {[%clk 0:00:25]} 140. Bc8 {[%clk 0:00:44]}  Kg5 {[%clk 0:00:26]} 141. Bd7 {[%clk 0:00:44]}  Kh6 {[%clk 0:00:27]} 142. Bc8 {[%clk 0:00:45]}  Kg7 {[%clk 0:00:28]} 143. Bd7 {[%clk 0:00:46]}  Kg8 {[%clk 0:00:28]} 144. Bc8 {[%clk 0:00:46]}  Bf6 {[%clk 0:00:29]} 145. Bd7 {[%clk 0:00:47]}  Kf8 {[%clk 0:00:30]} 146. Bc8 {[%clk 0:00:47]}  Ke7 {[%clk 0:00:31]} 147. Bg4 {[%clk 0:00:48]}  Kd8 {[%clk 0:00:32]} 148. Bh5 {[%clk 0:00:48]}  Bg5 {[%clk 0:00:33]} 149. Bg4 {[%clk 0:00:49]}  Kc7 {[%clk 0:00:34]} 150. Bh5 {[%clk 0:00:49]}  Kb8 {[%clk 0:00:21]} 151. Bg4 {[%clk 0:00:49]}  Bd8 {[%clk 0:00:22]} 152. Bh5 {[%clk 0:00:50]}  Ka8 {[%clk 0:00:23]} 153. Bg4 {[%clk 0:00:50]}  Bf6 {[%clk 0:00:23]} 154. Bh5 {[%clk 0:00:51]}  Ka7 {[%clk 0:00:24]} 155. Bg4 {[%clk 0:00:51]}  Kb6 {[%clk 0:00:25]} 156. Bh5 {[%clk 0:00:52]}  Ka5 {[%clk 0:00:26]} 157. Bg4 {[%clk 0:00:53]}  Kb4 {[%clk 0:00:27]} 158. Bh5 {[%clk 0:00:54]}  Kc5 {[%clk 0:00:28]} 159. Bg4 {[%clk 0:00:55]}  Bg5 {[%clk 0:00:28]} 160. Bh5 {[%clk 0:00:55]}  Kc4 {[%clk 0:00:29]} 161. Bg4 {[%clk 0:00:56]}  Kc3 {[%clk 0:00:30]} 162. Bh5 {[%clk 0:00:56]}  Kd2 {[%clk 0:00:31]} 163. Bg4 {[%clk 0:00:57]}  Ke3 {[%clk 0:00:31]} 164. Bh5 {[%clk 0:00:57]}  Ke4 {[%clk 0:00:31]} 165. Bg4 {[%clk 0:00:57]}  Bd8 {[%clk 0:00:31]} 166. Bh5 {[%clk 0:00:58]}  Kd4 {[%clk 0:00:31]} 167. Bg4 {[%clk 0:00:58]}  Kd5 {[%clk 0:00:10]} 168. Bh5 {[%clk 0:00:58]}  Kd6 {[%clk 0:00:11]} 169. Bg4 {[%clk 0:00:55]}  Kc7 {[%clk 0:00:04]} 170. Bh5 {[%clk 0:00:55]}  Kb8 {[%clk 0:00:02]} 1/2-1/2


[Site "https://www.chess.com"]

[Event "Titled Tuesday Blitz August 16 Early 2022"]
[White "Tologon tegin, Semetei"]
[Black "Girinath, P.D.S."]
[WhiteFideId "13800574"]
[BlackFideId "5000572"]
[WhiteElo "2174"]
[BlackElo "2369"]
[Result "1-0"]
[Round "08"]
[TimeControl "180+2"]
[Date "2022.08.18"]
[WhiteClock "0:00:00"]
[BlackClock "0:00:00"]

1. g3 {[%clk 0:00:00]}  e5 {[%clk 0:00:00]} 2. Bg2 {[%clk 0:00:00]}  d5 {[%clk 0:00:00]} 3. d3 {[%clk 0:00:00]}  Nf6 {[%clk 0:00:00]} 4. Nf3 {[%clk 0:00:00]}  Nc6 {[%clk 0:00:00]} 5. a3 {[%clk 0:00:00]}  a5 {[%clk 0:00:00]} 6. Bg5 {[%clk 0:00:00]}  Be6 {[%clk 0:00:00]} 7. Nfd2 {[%clk 0:00:00]}  Bc5 {[%clk 0:00:00]} 8. O-O {[%clk 0:00:00]}  h6 {[%clk 0:00:00]} 9. Bxf6 {[%clk 0:00:00]}  gxf6 {[%clk 0:00:00]} 10. Nc3 {[%clk 0:00:00]}  Ne7 {[%clk 0:00:00]} 11. e4 {[%clk 0:00:00]}  c6 {[%clk 0:00:00]} 12. exd5 {[%clk 0:00:00]}  cxd5 {[%clk 0:00:00]} 13. Nf3 {[%clk 0:00:00]}  Nc6 {[%clk 0:00:00]} 14. Nb5 {[%clk 0:00:00]}  Qb6 {[%clk 0:00:00]} 15. a4 {[%clk 0:00:00]}  d4 {[%clk 0:00:00]} 16. Nh4 {[%clk 0:00:00]}  f5 {[%clk 0:00:00]} 17. Qh5 {[%clk 0:00:00]}  f4 {[%clk 0:00:00]} 18. Rae1 {[%clk 0:00:00]}  O-O-O {[%clk 0:00:00]} 19. Nf3 {[%clk 0:00:00]}  Rdg8 {[%clk 0:00:00]} 20. Bh3 {[%clk 0:00:00]}  Bb4 {[%clk 0:00:00]} 21. Re2 {[%clk 0:00:00]}  Bxh3 {[%clk 0:00:00]} 22. Qxh3+ {[%clk 0:00:00]}  Kb8 {[%clk 0:00:00]} 23. Nxe5 {[%clk 0:00:00]}  Nxe5 {[%clk 0:00:00]} 24. Rxe5 {[%clk 0:00:00]}  Qc6 {[%clk 0:00:00]} 25. Qh5 {[%clk 0:00:00]}  f6 {[%clk 0:00:00]} 26. Re4 {[%clk 0:00:00]}  Rg5 {[%clk 0:00:00]} 27. Qf3 {[%clk 0:00:00]}  Rhg8 {[%clk 0:00:00]} 28. Rxf4 {[%clk 0:00:00]}  Qxc2 {[%clk 0:00:00]} 29. Rxf6 {[%clk 0:00:00]}  Qxb2 {[%clk 0:00:00]} 30. Qf4+ {[%clk 0:00:00]}  Ka8 {[%clk 0:00:00]} 31. Ra6+ {[%clk 0:00:00]}  bxa6 {[%clk 0:00:00]} 32. Qe4+ {[%clk 0:00:00]}  Kb8 {[%clk 0:00:00]} 33. Qf4+ {[%clk 0:00:00]}  Kb7 {[%clk 0:00:00]} 34. Qf7+ {[%clk 0:00:00]}  Kc6 {[%clk 0:00:00]} 35. Qe6+ {[%clk 0:00:00]}  Kc5 {[%clk 0:00:00]} 36. Qd6# {[%clk 0:00:00]} 1-0


[Site "https://www.chess.com"]